Cogmind - Beta 12 @@@ ROGUE MODE // 2023.12.28 @ 10:53:15 Player: javashane Result: Self-destructed Performance ------------- Evolutions (4) 2000 Regions Visited (8) 1600 Robots Destroyed (47) 235 Value Destroyed (1489) 1489 Prototype IDs (0) 0 Alien Tech Used (0) 0 Bonus (583) 583 TOTAL SCORE: 5907 Bonus ------- High Alert Combat Kills 13 Follower Combat Kills 70 Entered DSFs 500 Cogmind --------- Core Integrity 637/850 Matter 270/300 Energy 0/100 System Corruption 0% Temperature Cool (0) Movement Hovering (52) Location -6/Factory Parts ------- > --- POWER (2) -------- (None) > --- PROPULSION (4) --- Gravmag System Gravmag System Improved Gravmag System > --- UTILITY (5) ------ Improved Heat Sink Improved Heat Sink Medium Storage Unit Advanced Targeting Computer > --- WEAPON (4) ------- Remote Datajack > --- INVENTORY (10) --- Small Storage Unit Weight Redist. System Advanced Weight Redist. System Core Shielding Peak State ------------ > --- POWER ------------ Deuterium Engine Nuclear Core > --- PROPULSION ------- Aluminum Leg Carbon-fiber Leg Titanium Leg Improved Carbon-fiber Leg > --- UTILITY ---------- Improved Heat Sink Large Storage Unit Improved Sensor Array Core Shielding Reactive Plating > --- WEAPON ----------- Arc Projector Arc Projector Field Laser Heavy Missile Launcher > --- INVENTORY -------- Ion Engine Light Treads Aluminum Leg Aluminum Leg Small Storage Unit Medium Storage Unit Weight Redist. System Advanced Weight Redist. System Utility Shielding [Rating: 44] Favorites ----------- Power Nuclear Core Engine Ion Engine Power Core Nuclear Core Propulsion Aluminum Leg Leg Aluminum Leg Hover Unit Gravmag System Utility Core Shielding Device Improved Heat Sink Storage Medium Storage Unit Processor Advanced Targeting Computer Protection Core Shielding Weapon Beam Cannon Energy Gun Arc Projector Energy Cannon Beam Cannon Ballistic Gun Light Assault Rifle Launcher Grenade Launcher Special Weapon Remote Datajack Slashing Weapon Axe Build | -11 -10 -10 -10 -9 -8 -7 -7 -6 ------- Run | Jun Mat Min Exi Min Mat Fac DSF Fac Slots Evolved 8 | . . . . . 4 2 . 2 Power 1 | . . . . . . . . 1 Propulsion 2 | . . . . . 2 . . . Utility 3 | . . . . . 2 1 . . Weapon 2 | . . . . . . 1 . 1 Parts Attached 44 | . 7 2 2 . 8 2 6 17 Power 4 | . . . 2 . . . . 2 Engine 3 | . . . 1 . . . . 2 Core 1 | . . . 1 . . . . . Reactor . | . . . . . . . . . Propulsion 14 | . . 1 . . 5 . 1 7 Treads . | . . . . . . . . . Leg 10 | . . 1 . . 5 . 1 3 Wheel . | . . . . . . . . . Hover 4 | . . . . . . . . 4 Flight . | . . . . . . . . . Utility 13 | . 5 . . . 3 1 1 3 Device 4 | . 1 . . . 1 1 . 1 Storage 4 | . 2 . . . 1 . . 1 Processor 2 | . 1 . . . . . . 1 Hackware . | . . . . . . . . . Protection 3 | . 1 . . . 1 . 1 . Artifact . | . . . . . . . . . Weapon 13 | . 2 1 . . . 1 4 5 Energy Gun 4 | . . . . . . 1 2 1 Energy Cannon 2 | . 1 1 . . . . . . Ballistic Gun . | . . . . . . . . . Ballistic Cannon . | . . . . . . . . . Launcher 5 | . 1 . . . . . 2 2 Special Weapon 1 | . . . . . . . . 1 Impact Weapon . | . . . . . . . . . Slashing Weapon 1 | . . . . . . . . 1 Piercing Weapon . | . . . . . . . . . Special Melee Weapon . | . . . . . . . . . Unidentified Prototypes . | . . . . . . . . . Parts Lost 17 | . 1 1 . . . . 1 14 Power 3 | . . . . . . . . 3 Propulsion 6 | . . . . . . . 1 5 Utility 3 | . 1 . . . . . . 2 Weapon 5 | . . 1 . . . . . 4 Highest Loss Streak 9 | . 1 1 . . . . 1 9 To Critical Strikes . | . . . . . . . . . Average Slot Usage (%) 94 | . 96 99 100 100 99 100 95 76 Engine 5 | . 14 14 . . . . . 5 Core 6 | . . . 13 14 9 7 7 4 Leg 27 | . 28 28 28 28 36 30 29 20 Device 3 | . 2 . . . 9 15 15 11 Storage 11 | . 14 14 14 14 9 7 7 4 Processor 2 | . 7 . . . . . . 5 Protection 10 | . . 14 14 14 17 15 15 5 Energy Gun 4 | . 11 . . . . 7 15 10 Energy Cannon 16 | . 11 20 28 28 18 15 1 . Launcher 2 | . 2 7 . . . . 2 1 Naked Turns . | . . . . . . . . . Heaviest Build 62 | 12 22 22 24 24 45 49 55 62 Greatest Support 60 | 20 20 25 25 25 52 52 60 60 Greatest Overweight (x) 3 | . 1 1 . . . . 1 3 Average Overweight (x) . | . . . . . . . . . Largest Inventory Capacity 15 | 8 15 10 10 10 15 15 15 15 Average Capacity 11 | 8 9 10 10 10 14 15 15 12 Most Carried 12 | 6 10 10 10 10 12 11 12 11 Average Carried 9 | 6 8 9 10 10 8 10 11 8 Final Capacity 15 | 8 10 10 10 10 15 15 15 10 Final Carried 12 | 6 10 10 10 10 12 10 11 4 Class Distribution -------------------- 93% | Mutant 3% | Tank Dominant Class ---------------- Mutant | -10/Materials Mutant | -10/Mines Mutant | -10/Exiles Mutant | -9/Mines Mutant | -8/Materials Mutant | -7/Factory Mutant | -7/DSF Mutant | -6/Factory Resources | -11 -10 -10 -10 -9 -8 -7 -7 -6 ----------- Run | Jun Mat Min Exi Min Mat Fac DSF Fac Matter Collected 792 | 200 91 115 . . 90 . 155 141 Remotely . | . . . . . . . . . Salvage Created 1414 | . 440 206 . . 72 . 313 383 Parts 78 | . 31 11 . . 5 . 15 16 Haulers Intercepted 1 | . 1 . . . . . . . Recyclers Shooed 1 | . . 1 . . . . . . Parts Field Recycled . | . . . . . . . . . Retrieved Matter . | . . . . . . . . . Parts Self-Destructed . | . . . . . . . . . Prevented . | . . . . . . . . . Kills | -11 -10 -10 -10 -9 -8 -7 -7 -6 ------- Run | Jun Mat Min Exi Min Mat Fac DSF Fac Combat Hostiles Destroyed 38 | . 11 10 . . 1 . 6 10 Melee 2 | . . . . . . . . 2 Guns 6 | . 2 . . . . . 2 2 Cannons 5 | . 2 2 . . 1 . . . AOE 24 | . 7 7 . . . . 4 6 Classes Destroyed 13 | . 6 2 . . 2 . 1 2 Builder 3 | . 3 . . . . . . . Tunneler 1 | . . 1 . . . . . . Hauler 1 | . 1 . . . . . . . Recycler 2 | . 1 1 . . . . . . Operator 1 | . . . . . 1 . . . Watcher 3 | . 3 . . . . . . . Swarmer 15 | . 6 6 . . . . . 3 Grunt 12 | . 5 2 . . . . 3 2 Duelist 2 | . . . . . . . . 2 Sentry 2 | . . . . . 1 . . 1 Specialist 3 | . . . . . . . 3 . Programmer 2 | . . . . . . . . 2 Assembled 2 | . . 2 . . . . . . Best Kill Streak 15 | . 15 5 . . 2 . 3 3 Combat Bots Only 7 | . 7 3 . . 1 . 3 3 Max Kills in Single Turn 4 | . 4 3 . . 1 . 2 2 Gunslinging . | . . . . . . . . . Exploded 3 | . 2 3 . . . . 2 2 Melee 1 | . . . . . . . . 1 Uniques/NPCs Destroyed . | . . . . . . . . . Combat | -11 -10 -10 -10 -9 -8 -7 -7 -6 -------- Run | Jun Mat Min Exi Min Mat Fac DSF Fac Damage Taken 2178 | . 407 174 . . 42 . 297 1258 Core 417 | . 138 40 . . . . 26 213 Absorbed by Shields . | . . . . . . . . . Redirected to Shielding 13 | . . 8 . . . . 5 . Core Remaining (%) 81 | 100 . . . 28 100 . 96 . Volleys Fired 76 | . 22 14 . . 6 . 8 26 Largest 3 | . 2 2 . . 2 . 2 3 Hottest 173 | . 100 120 . . 120 . 110 173 Shots Fired 120 | . 40 17 . . 12 . 11 40 Gun 56 | . 16 . . . . . 6 34 Cannon 40 | . 18 10 . . 12 . . . Launcher 22 | . 6 7 . . . . 5 4 Special 2 | . . . . . . . . 2 Kinetic . | . . . . . . . . . Thermal 76 | . 34 10 . . 12 . . 20 Explosive 22 | . 6 7 . . . . 5 4 Electromagnetic 20 | . . . . . . . 6 14 Robot Hit Streak 20 | . 14 3 . . 3 . 5 20 Robot Miss Streak 3 | . 3 2 . . 1 . 2 1 Penetration Max . | . . . . . . . . . Secondary Targets . | . . . . . . . . . Shots Hit Robots 79 | . 22 6 . . 8 . 7 36 Core Hits 72 | . 26 15 . . 2 . 9 20 Critical Kills 1 | . . 1 . . . . . . Critical Parts Destroyed . | . . . . . . . . . Critical Strikes 1 | . . 1 . . . . . . Meltdown 1 | . . 1 . . . . . . Melee Attacks 3 | . . . . . . . . 3 Impact . | . . . . . . . . . Slashing 3 | . . . . . . . . 3 Piercing . | . . . . . . . . . Sneak Attacks . | . . . . . . . . . Combat Hostiles . | . . . . . . . . . Follow-up Attacks . | . . . . . . . . . Damage Inflicted 3246 | . 925 460 . . 141 . 512 1208 Guns 568 | . 131 . . . . . 57 380 Cannons 406 | . 178 87 . . 141 . . . Explosions 2199 | . 606 373 . . . . 455 765 Melee 63 | . . . . . . . . 63 Ramming 10 | . 10 . . . . . . . Kinetic . | . . . . . . . . . Thermal 1025 | . 309 87 . . 141 . . 488 Explosive 1977 | . 606 373 . . . . 455 543 Electromagnetic 171 | . . . . . . . 57 114 Impact . | . . . . . . . . . Slashing 63 | . . . . . . . . 63 Piercing . | . . . . . . . . . Highest Corruption . | . . . . . . . . . Average Corruption . | . . . . . . . . . Corruption Purged . | . . . . . . . . . Corruption Blocked . | . . . . . . . . . Overload Shots . | . . . . . . . . . Overflow Damage 87 | . 8 1 . . . . . 78 Projectiles . | . . . . . . . . . Explosions 87 | . 8 1 . . . . . 78 Melee . | . . . . . . . . . Knockbacks . | . . . . . . . . . Impact . | . . . . . . . . . Kinetic . | . . . . . . . . . Secondary . | . . . . . . . . . Self-Inflicted Damage 239 | . . 32 . . . . 71 136 Shots 5 | . . 1 . . . . 1 3 Rammed . | . . . . . . . . . Targets Rammed 2 | . 2 . . . . . . . Kicked 2 | . 2 . . . . . . . Crushed . | . . . . . . . . . Highest Temperature 282 | . 225 186 . . 42 . . 282 Average Temperature 84 | . 77 73 . . 17 . . 127 Received Heat Transfer 366 | . 102 6 . . 18 . 54 186 Effects 1 | . . . . . . . . 1 Energy Bleed 1 | . . . . . . . . 1 Siege Activations . | . . . . . . . . . Robots Corrupted . | . . . . . . . . . Combat Hostiles . | . . . . . . . . . Parts Fried 1 | . . . . . . . . 1 Impact Corruptions . | . . . . . . . . . Robots Melted 1 | . . 1 . . . . . . Combat Hostiles 1 | . . 1 . . . . . . Parts Melted 4 | . 1 2 . . 1 . . . Heat Transferred 1843 | . 670 185 . . 296 . . 692 Parts Sabotaged 2 | . . . . . . . . 2 Parts Stolen . | . . . . . . . . . Parts Stripped . | . . . . . . . . . Power Chain Reactions 1 | . . . . . . . . 1 Missiles Intercepted . | . . . . . . . . . Alert | -11 -10 -10 -10 -9 -8 -7 -7 -6 ------- Run | Jun Mat Min Exi Min Mat Fac DSF Fac Peak Influence 443 | . 361 336 . . 107 53 220 443 Initial 140 | . . 140 . . . 48 37 115 Average 168 | . 77 211 . . 57 49 119 293 Maximum Alert Level 2 | . 1 1 . . . . 1 2 Low Security (%) 60 | 100 85 48 . 100 100 100 74 23 Level 1 31 | . 14 51 . . . . 25 48 Level 2 8 | . . . . . . . . 28 Level 3 . | . . . . . . . . . Level 4 . | . . . . . . . . . Level 5 . | . . . . . . . . . High Security . | . . . . . . . . . Max Security . | . . . . . . . . . Squads Dispatched 7 | . 1 . . . 1 . 1 4 Investigation 2 | . 1 . . . 1 . . . Extermination 2 | . . . . . . . . 2 Reinforcement 1 | . . . . . . . 1 . Assault 1 | . . . . . . . . 1 Garrison 1 | . . . . . . . . 1 Intercept . | . . . . . . . . . Searches Triggered . | . . . . . . . . . Construction Impeded . | . . . . . . . . . Haulers Reinforced . | . . . . . . . . . Active Scanning Responses . | . . . . . . . . . Cargo Convoy Interrupts . | . . . . . . . . . Stealth | -11 -10 -10 -10 -9 -8 -7 -7 -6 --------- Run | Jun Mat Min Exi Min Mat Fac DSF Fac Distress Signals 2 | . 1 . . . . . . 1 Communications Jammed . | . . . . . . . . . Distress Signals . | . . . . . . . . . Times Spotted 57 | . 15 9 . . 10 . 8 15 Peak Tracking Total 8 | . 8 3 . . 4 . 3 5 Tactical Retreats 5 | . 1 . . . . . 2 2 Traps | -11 -10 -10 -10 -9 -8 -7 -7 -6 ------- Run | Jun Mat Min Exi Min Mat Fac DSF Fac Traps Triggered 2 | . 1 . . . . . 1 . Indirectly . | . . . . . . . . . Trap Hack Attempts . | . . . . . . . . . Triggered . | . . . . . . . . . Disarmed . | . . . . . . . . . Reprogrammed . | . . . . . . . . . Reused . | . . . . . . . . . Traps Extracted . | . . . . . . . . . Installed . | . . . . . . . . . Triggered . | . . . . . . . . . Machines | -11 -10 -10 -10 -9 -8 -7 -7 -6 ---------- Run | Jun Mat Min Exi Min Mat Fac DSF Fac Machines Disabled 9 | . 3 1 . . . . 1 4 Max in Single Turn 3 | . 2 1 . . . . 1 3 Garrison Access 1 | . . . . . . . . 1 Machines Repaired . | . . . . . . . . . Machines Sabotaged . | . . . . . . . . . Overloaded Fab Kills . | . . . . . . . . . Hacking | -11 -10 -10 -10 -9 -8 -7 -7 -6 --------- Run | Jun Mat Min Exi Min Mat Fac DSF Fac Machines Accessed 9 | . 1 1 4 . 1 1 . 1 Terminals 3 | . 1 . . . . 1 . 1 Fabricators . | . . . . . . . . . Repair Stations . | . . . . . . . . . Recycling Units . | . . . . . . . . . Scanalyzers 1 | . . . . . 1 . . . Garrison Access . | . . . . . . . . . Total Hacks 44 | . 2 1 34 . 5 1 . 1 Successful 41 | . . 1 34 . 4 1 . 1 Failed 3 | . 2 . . . 1 . . . Catastrophic . | . . . . . . . . . Database Lockouts . | . . . . . . . . . Manual 3 | . . . 3 . . . . . Terminals 4 | . 2 . . . . 1 . 1 Fabricators . | . . . . . . . . . Repair Stations . | . . . . . . . . . Recycling Units . | . . . . . . . . . Scanalyzers 5 | . . . . . 5 . . . Garrison Access . | . . . . . . . . . Terminal Hacks 37 | . . 1 34 . . 1 . 1 Record 34 | . . . 34 . . . . . Open Door 1 | . . 1 . . . . . . Open DSF 2 | . . . . . . 1 . 1 Fabricator Hacks . | . . . . . . . . . Repair Station Hacks . | . . . . . . . . . Recycling Unit Hacks . | . . . . . . . . . Scanalyzer 4 | . . . . . 4 . . . Insert Component 2 | . . . . . 2 . . . Analyze 2 | . . . . . 2 . . . Garrison Access Hacks . | . . . . . . . . . Unauthorized Hacks . | . . . . . . . . . Terminals . | . . . . . . . . . Fabricators . | . . . . . . . . . Repair Stations . | . . . . . . . . . Recycling Units . | . . . . . . . . . Scanalyzers . | . . . . . . . . . Garrison Access . | . . . . . . . . . Data Cores Recovered 1 | . . . . . 1 . . . Used . | . . . . . . . . . Hacking Detections 2 | . 1 . . . 1 . . . Full Trace Events . | . . . . . . . . . Feedback Events . | . . . . . . . . . Feedback Blocked . | . . . . . . . . . Robot Schematics Acquired . | . . . . . . . . . Robots Built . | . . . . . . . . . Authchips . | . . . . . . . . . Time . | . . . . . . . . . Total Robot Build Rating . | . . . . . . . . . Part Schematics Acquired 2 | . . . . . 2 . . . Parts Built . | . . . . . . . . . Authchips . | . . . . . . . . . Time . | . . . . . . . . . Total Part Build Rating . | . . . . . . . . . Parts Repaired . | . . . . . . . . . Time . | . . . . . . . . . Parts Recycled . | . . . . . . . . . Recycled Matter . | . . . . . . . . . Retrieved Matter . | . . . . . . . . . Retrieved Components . | . . . . . . . . . Parts Scanalyzed 2 | . . . . . 2 . . . Part Schematics Acquired 2 | . . . . . 2 . . . Parts Damaged . | . . . . . . . . . Bothacking | -11 -10 -10 -10 -9 -8 -7 -7 -6 ------------ Run | Jun Mat Min Exi Min Mat Fac DSF Fac Used RIF Installer . | . . . . . . . . . Robots Hacked 1 | . . . . . . . . 1 Non-combat . | . . . . . . . . . Combat 1 | . . . . . . . . 1 Robot Hacks Applied 2 | . . . . . . . . 2 parse_system 2 | . . . . . . . . 2 Relay Couplers Released 2 | . . . . . . . . 2 Machine Destruction 2 | . . . . . . . . 2 Fabnet Peak Effective % . | . . . . . . . . . Robots Rewired . | . . . . . . . . . Allies Hacked . | . . . . . . . . . Hacks Repelled . | . . . . . . . . . Allies | -11 -10 -10 -10 -9 -8 -7 -7 -6 -------- Run | Jun Mat Min Exi Min Mat Fac DSF Fac Total Allies 3 | . . . . 3 . . . . Largest Group 3 | . . . . 3 3 2 2 . Highest-Rated Group 40 | . . . . 40 40 32 32 . Highest-Rated Ally 16 | . . . . 16 16 16 16 . Total Orders . | . . . . . . . . . Ally Attacks 29 | . . . . . 29 . . . Total Damage 285 | . . . . . 285 . . . Kills 2 | . . . . . 2 . . . Allies Corrupted . | . . . . . . . . . Allies Melted . | . . . . . . . . . Intel | -11 -10 -10 -10 -9 -8 -7 -7 -6 ------- Run | Jun Mat Min Exi Min Mat Fac DSF Fac Robot Analysis Total . | . . . . . . . . . Derelict Logs Recovered 2 | . . 1 . 1 . . . . Drone Launches . | . . . . . . . . . Drone Recoveries . | . . . . . . . . . Exploration | -11 -10 -10 -10 -9 -8 -7 -7 -6 ------------- Run | Jun Mat Min Exi Min Mat Fac DSF Fac Turns Passed 4035 | 6 613 739 1183 242 298 11 114 829 Spaces Moved 2456 | 6 239 488 979 202 213 8 60 261 Core 6 | . . . . . . . . 6 Treads . | . . . . . . . . . Legs 2377 | 6 239 488 979 202 213 8 60 182 Wheels . | . . . . . . . . . Hover 73 | . . . . . . . . 73 Flight . | . . . . . . . . . Fastest Speed 48 | 120 120 120 120 120 120 122 122 48 Average Speed 124 | 120 132 140 120 120 120 122 127 114 Slowest Speed 200 | 120 190 190 120 120 122 122 193 200 Overloaded Moves . | . . . . . . . . . Propulsion Burnouts . | . . . . . . . . . Robots Hopped . | . . . . . . . . . Cave-ins Triggered . | . . . . . . . . . Exploration Rate (%) 40 | 2 33 69 91 60 20 . 47 5 Regions Visited 8 Branch Regions 3 Pre-discovered Areas 1 | . . . 1 . . . . . Known Exits Taken 2 | . . . . . 1 1 . . Unknown Exits Taken 5 | 1 1 1 1 1 . . . . Scrap Searched 3 | . . 3 . . . . . . Spaces Dug . | . . . . . . . . . Terrain Destroyed 146 | . 31 31 . . . . 57 27 Melee . | . . . . . . . . . Projectile . | . . . . . . . . . AOE 146 | . 31 31 . . . . 57 27 Terrain Rammed . | . . . . . . . . . Walls Destroyed . | . . . . . . . . . Machines Disabled . | . . . . . . . . . Actions | -11 -10 -10 -10 -9 -8 -7 -7 -6 --------- Run | Jun Mat Min Exi Min Mat Fac DSF Fac Total 3293 | 5 493 529 986 201 241 9 85 744 Wait 678 | . 214 16 . . 9 . 7 432 Move 2448 | 5 238 487 978 201 212 7 59 261 Hop . | . . . . . . . . . Pick Up 18 | . 7 5 . . 5 . 1 . Fast Attach 17 | . 4 . . . . . 3 10 Attach 17 | . 1 1 . . 5 2 2 6 Detach 6 | . . . . . 1 . 2 3 Swap 10 | . 2 1 2 . 3 . 1 1 Drop 12 | . 3 5 . . . . 2 2 Fire 76 | . 22 14 . . 6 . 8 26 Melee 3 | . . . . . . . . 3 Ram . | . . . . . . . . . Kick 2 | . 2 . . . . . . . Crush . | . . . . . . . . . Escape Stasis . | . . . . . . . . . Rewire 6 | . . . 6 . . . . . Trap . | . . . . . . . . . Miscellaneous . | . . . . . . . . . Route ------- -11/Junkyard -10/Materials -10/Mines -10/Exiles -9/Mines -8/Materials (discovered 2 exits: *Fac x2) -7/Factory -7/DSF -6/Factory History --------- Turn | Location | Event 1 | -11/Junkyard | Discovered new exit (range 3) 7 | -11/Junkyard | Entered Materials 302 | -10/Materials | Build established: Mutant 514 | -10/Materials | Discovered new exit (range 11) 531 | -10/Materials | Core integrity fell below 50% 566 | -10/Materials | Destroyed 7 combat bots 620 | -10/Materials | Entered Mines 683 | -10/Mines | Met a Derelict bent on vengeance 727 | -10/Mines | Learned Materials emergency access door positions 842 | -10/Mines | Met a Derelict who couldn't figure out how to use a Trap Extractor 935 | -10/Mines | Assembled infested the area 1353 | -10/Mines | Deemed a non-threat by the Exiles lab entrance 1355 | -10/Mines | Discovered new exit (range 5) 1359 | -10/Mines | Entered Exiles 1400 | -10/Exiles | Met 8R-AWN 1422 | -10/Exiles | Met EX-HEX 1470 | -10/Exiles | Met EX-DEC 1524 | -10/Exiles | Visited The Gauntlet 1688 | -10/Exiles | Learned location of Zion (-7) 1748 | -10/Exiles | Met EX-BIN 2014 | -10/Exiles | Discovered new exit (range 10) 2542 | -10/Exiles | Entered Mines 2731 | -9/Mines | Assisted by bots powering up and referring to "LRC-V3" 2772 | -9/Mines | Discovered new exit (range 9) 2784 | -9/Mines | Entered Materials 2784 | -8/Materials | Accompanied by 3 allies 2784 | -8/Materials | Evolved 4 slots: Propulsion x2, Utility x2 2785 | -8/Materials | Identified exit to Factory 3077 | -8/Materials | Discovered exit to Factory (range 5) 3082 | -8/Materials | Entered Factory 3082 | -7/Factory | Accompanied by 2 allies 3082 | -7/Factory | Evolved 2 slots: Utility x1, Weapon x1 3089 | -7/Factory | Identified exit to DSF 3093 | -7/Factory | Entered DSF 3093 | -7/DSF | Accompanied by 2 allies 3121 | -7/DSF | Additional patrols routed to DSF 3134 | -7/DSF | Discovered new exit (range 16) 3207 | -7/DSF | Entered Factory 3207 | -6/Factory | Evolved 2 slots: Power x1, Weapon x1 3879 | -6/Factory | Lost 9 parts (2p3n2u2w) 4036 | -6/Factory | Self-destructed Last Messages --------------- 03965_ P-60 Hacker destroyed. 03966_ ALERT: Cargo convoy en route, clear transfer corridor. 03968_ Acquired Gravmag System. 03974_ Acquired Imp. Heat Sink. 03976_ Acquired Remote Datajack. 03990_ Acquired 40 matter. 03995_ Connecting with DSF Access... 04011_ W-25 Informer sends out distress signal. 04015_ Ion Engine destroyed. 04022_ Acquired Imp. Gravmag System. 04023_ Dropped Aluminum Leg. 04024_ Acquired Imp. Gravmag System. 04030_ Axe destroyed. 04033_ Jacked S-27 Virus... >>parse_system Reading system data... 04034_ Jacked S-27 Virus... >>parse_system Reading system data... 04035_ Imp. Gravmag System destroyed. Map ----- +----------------------------------------------------+ | ???????????? ????????????????????? | | ???????????? ????????????????????? | | ???????????? #####???????????????? | | ###????????# #???????????????? | | #????????# #???????????????? | | #????????# +???????????????? | | #????????# #???????????????? | | #????????# #???????????????? | | #????????# #???????????????? | | ! #????????# #???????????????? | | #????????# #???????????????? | | " #????????# #???????????????? | | " #????????# #???????????????? | | " #????????+ #???????????????? | | " #????????# #???????????????? | | #????????# #???????????????? | | ###?######## #???????####????? | | ????# ##+##### ???? | | ????# + """ ?!? | | ????# ^ # """ ? | | ????# # """ ?? | | ???## + ? | | ?? ## # """ # | | ##### # """ # | | %% # """ # | | % = #@ # | | ! = s """ # | | = # """ # | | " # """ ? | | ######## #s !? | | ???????# # """ ? | | ???????# + """ ? | | ???????# #### # """ # | | ???????# "??# # ? ?? | | ???????+ !! ""?# # ???? | | ???????# """ !! ??? ######???? | | ???????# """ "??? #????????? | | ???????# """ "??? #????????? | | ???????? ? ???? #????????? | | ???????? ?? ???? ?????????? | | ?????????????? ? ?????+?????????? | | ?????????????????????????????????? | | ?????????????????????????????????? | | ?????????????????????????????????? | | ?????????????????????????????????? | | ?????????????????????????????????? | | ?????????????????????????????????? | | ?????????????????????????????????? | | ?????????????????????????????????? | | ?????????????????????????????????? | +----------------------------------------------------+ Best States ------------- Heat Dissipation 65 Energy Generation 23 Energy Capacity 415 Matter Stores 300 Matter Capacity 300 Sight Range 16 Robot Scan Range 15 Terrain Scan Density 10 Armor Coverage 150 Resistance: KI 20 Core Shielding 20 Evasion (%) 55 Targeting Accuracy 8 Item Schematics ----------------- Imp. Sensor Array | -8/Materials | Scanalyzed Titanium Leg | -8/Materials | Scanalyzed Robot Schematics ------------------ None Fabricated ------------ Nothing Alien Tech Used ----------------- None Achievements -------------- None Challenges ------------ None Game ------ Seed AlertGravmagBoosters Manual? 0 Play Time 00:40:00 Cumulative 26.6 hours Start 2023.12.25 @ 13:22:44 End 2023.12.28 @ 10:53:15 Sessions 3 Manual Loads 0 Difficulty Rogue Special Mode None Game No. 41 Rogue 40 Adventurer 1 Explorer 0 Win Type - Total 0 Types 0/0/0/0/0/0/0/0/0 Lore% 14 Gallery% 30 Achievement% 22 Wizard Run 0 Options --------- ASCII 0 Keyboard 0 Movement Arrows Keybinds 0 Fullscreen 1 Font 24/Smallcaps Map View 76x50 Tactical HUD 1 Map Filters NONE Filters NONE Steam 1 RUN: ef11a8e0-f93b-41fd-b203-e4538f43d5a1